[Event "*** SCC Grand Prix: Titled Tuesday Blitz"]
[Site "Chess.com"]
[Date "2020.07.14"]
[Round "10"]
[White "GM_Levan_Pantsulaia"]
[Black "viktorskliarov"]
[Result "1-0"]
[WhiteElo "2838"]
[BlackElo "2614"]
[TimeControl "180+1"]
[EndTime "11:57:46 PDT"]
[Termination "GM_Levan_Pantsulaia won by resignation"]

1. Nf3 {[%clk 0:03:00.9]} 1... g6 {[%clk 0:02:59.3]} 2. g3 {[%clk 0:03:00.8]}
2... Bg7 {[%clk 0:02:59.7]} 3. Bg2 {[%clk 0:03:01.7]} 3... Nf6 {[%clk
0:03:00.3]} 4. b3 {[%clk 0:03:00.9]} 4... O-O {[%clk 0:02:59.9]} 5. Bb2 {[%clk
0:03:01.4]} 5... c5 {[%clk 0:02:59.8]} 6. c4 {[%clk 0:03:00.5]} 6... Nc6 {[%clk
0:02:59.4]} 7. O-O {[%clk 0:02:58.9]} 7... d5 {[%clk 0:02:56.4]} 8. cxd5 {[%clk
0:02:59.8]} 8... Nxd5 {[%clk 0:02:56.5]} 9. Bxg7 {[%clk 0:02:58.8]} 9... Kxg7
{[%clk 0:02:56.6]} 10. d4 {[%clk 0:02:59.4]} 10... cxd4 {[%clk 0:02:53.8]} 11.
Nxd4 {[%clk 0:03:00.3]} 11... Nxd4 {[%clk 0:02:54.1]} 12. Qxd4+ {[%clk
0:03:00.1]} 12... Nf6 {[%clk 0:02:54.3]} 13. Qe5 {[%clk 0:03:00.6]} 13... Qb6
{[%clk 0:02:21]} 14. Nc3 {[%clk 0:03:00.2]} 14... Be6 {[%clk 0:02:17.2]} 15. Na4
{[%clk 0:03:00.2]} 15... Qb4 {[%clk 0:01:32.5]} 16. Qc5 {[%clk 0:02:59.2]} 16...
Qxc5 {[%clk 0:01:26.9]} 17. Nxc5 {[%clk 0:03:00.1]} 17... Bd5 {[%clk 0:01:27.3]}
18. Nxb7 {[%clk 0:02:59.9]} 18... Bxg2 {[%clk 0:01:24.6]} 19. Kxg2 {[%clk
0:03:00.8]} 19... Rab8 {[%clk 0:01:24.9]} 20. Na5 {[%clk 0:02:54.6]} 20... Rb6
{[%clk 0:01:13.8]} 21. Rfd1 {[%clk 0:02:48.1]} 21... Rc8 {[%clk 0:01:10.8]} 22.
Rac1 {[%clk 0:02:46]} 22... Rxc1 {[%clk 0:01:10.5]} 23. Rxc1 {[%clk 0:02:46.9]}
23... Ra6 {[%clk 0:01:11.1]} 24. b4 {[%clk 0:02:45.6]} 24... Nd5 {[%clk
0:01:10.5]} 25. a3 {[%clk 0:02:45.4]} 25... e6 {[%clk 0:01:06.9]} 26. e4 {[%clk
0:02:44.9]} 26... Nf6 {[%clk 0:01:06.4]} 27. Rc6 {[%clk 0:02:37.5]} 27... Rb6
{[%clk 0:00:57.1]} 28. Rxb6 {[%clk 0:02:34.6]} 28... axb6 {[%clk 0:00:58]} 29.
Nc4 {[%clk 0:02:35.1]} 29... Nd7 {[%clk 0:00:57.5]} 30. a4 {[%clk 0:02:33.1]}
30... Kf6 {[%clk 0:00:57.9]} 31. e5+ {[%clk 0:02:28.3]} 31... Ke7 {[%clk
0:00:50.6]} 32. f4 {[%clk 0:02:27.8]} 32... f5 {[%clk 0:00:44.2]} 33. exf6+
{[%clk 0:02:24.4]} 33... Kxf6 {[%clk 0:00:44.4]} 34. Kf3 {[%clk 0:02:24.8]}
34... h5 {[%clk 0:00:32.7]} 35. h4 {[%clk 0:02:19.4]} 35... Kf5 {[%clk
0:00:23.4]} 36. Ne5 {[%clk 0:02:13.4]} 36... Nb8 {[%clk 0:00:12.2]} 37. b5
{[%clk 0:02:09.1]} 37... Kf6 {[%clk 0:00:11.4]} 38. Ke4 {[%clk 0:02:09.2]} 38...
Kg7 {[%clk 0:00:09.7]} 39. Kd4 {[%clk 0:01:49.8]} 39... Kf6 {[%clk 0:00:08.5]}
40. Kc4 {[%clk 0:01:49.8]} 40... Kf5 {[%clk 0:00:08.7]} 41. Kb4 {[%clk
0:01:49.5]} 41... Ke4 {[%clk 0:00:08.4]} 42. a5 {[%clk 0:01:49.7]} 42... bxa5+
{[%clk 0:00:07.7]} 43. Kxa5 {[%clk 0:01:50.6]} 43... Ke3 {[%clk 0:00:04]} 44.
Kb6 {[%clk 0:01:49.4]} 44... Kf2 {[%clk 0:00:04.2]} 45. Kc7 {[%clk 0:01:47.7]}
45... Kxg3 {[%clk 0:00:04.6]} 46. Nxg6 {[%clk 0:01:47.2]} 46... Kg4 {[%clk
0:00:02.4]} 1-0

[Event "*** SCC Grand Prix: Titled Tuesday Blitz"]
[Site "Chess.com"]
[Date "2020.07.14"]
[Round "10"]
[White "keepitcool9499"]
[Black "aripov96"]
[Result "1-0"]
[WhiteElo "2564"]
[BlackElo "2436"]
[TimeControl "180+1"]
[EndTime "11:57:47 PDT"]
[Termination "keepitcool9499 won by checkmate"]

1. d4 {[%clk 0:03:00.9]} 1... d5 {[%clk 0:02:59.8]} 2. c4 {[%clk 0:03:00.9]}
2... c6 {[%clk 0:03:00.4]} 3. cxd5 {[%clk 0:03:00.4]} 3... cxd5 {[%clk
0:02:59.6]} 4. Nc3 {[%clk 0:03:01.3]} 4... Nf6 {[%clk 0:02:59.9]} 5. Bf4 {[%clk
0:02:58.8]} 5... Nc6 {[%clk 0:02:55.1]} 6. Nf3 {[%clk 0:02:58.9]} 6... a6 {[%clk
0:02:38]} 7. e3 {[%clk 0:02:58.4]} 7... Bg4 {[%clk 0:02:37.5]} 8. Rc1 {[%clk
0:02:53.8]} 8... e6 {[%clk 0:02:37.6]} 9. Qb3 {[%clk 0:02:51.6]} 9... Bxf3
{[%clk 0:02:25.7]} 10. gxf3 {[%clk 0:02:52.5]} 10... Qd7 {[%clk 0:02:20.5]} 11.
Na4 {[%clk 0:02:49.5]} 11... Bb4+ {[%clk 0:02:14.5]} 12. Kd1 {[%clk 0:02:46.2]}
12... Qe7 {[%clk 0:01:57.2]} 13. a3 {[%clk 0:02:42.4]} 13... Ba5 {[%clk
0:01:50.1]} 14. Nc5 {[%clk 0:02:42.6]} 14... Ra7 {[%clk 0:01:12.1]} 15. Bd3
{[%clk 0:02:26]} 15... O-O {[%clk 0:01:10.6]} 16. Ke2 {[%clk 0:02:25.6]} 16...
e5 {[%clk 0:01:03.2]} 17. dxe5 {[%clk 0:02:15.7]} 17... Nxe5 {[%clk 0:01:04.1]}
18. Rhg1 {[%clk 0:02:11.6]} 18... d4 {[%clk 0:00:47]} 19. Ne4 {[%clk 0:02:04.7]}
19... Nxd3 {[%clk 0:00:33.7]} 20. Qxd3 {[%clk 0:02:00.3]} 20... Nxe4 {[%clk
0:00:18.5]} 21. Qxe4 {[%clk 0:01:51.8]} 21... Qxe4 {[%clk 0:00:18.4]} 22. fxe4
{[%clk 0:01:52.7]} 22... dxe3 {[%clk 0:00:18.8]} 23. Bxe3 {[%clk 0:01:50.4]}
23... Raa8 {[%clk 0:00:19.4]} 24. Bh6 {[%clk 0:01:47.2]} 24... Rfd8 {[%clk
0:00:11.1]} 25. Rxg7+ {[%clk 0:01:33.6]} 25... Kh8 {[%clk 0:00:11.1]} 26. Rxf7
{[%clk 0:01:34]} 26... Rac8 {[%clk 0:00:09.4]} 27. Rxc8 {[%clk 0:01:30.7]} 27...
Rxc8 {[%clk 0:00:10.3]} 28. Rxb7 {[%clk 0:01:27.1]} 28... Bd8 {[%clk 0:00:08.6]}
29. e5 {[%clk 0:01:12.6]} 29... Bc7 {[%clk 0:00:08.8]} 30. f4 {[%clk 0:01:07.1]}
30... Bd8 {[%clk 0:00:07.4]} 31. Kd3 {[%clk 0:01:04.8]} 31... Bc7 {[%clk
0:00:07.4]} 32. Ke4 {[%clk 0:01:02.9]} 32... Bd8 {[%clk 0:00:07.1]} 33. Rf7
{[%clk 0:00:56.1]} 33... a5 {[%clk 0:00:06.5]} 34. Rf8# {[%clk 0:00:54.9]} 1-0

[Event "*** SCC Grand Prix: Titled Tuesday Blitz"]
[Site "Chess.com"]
[Date "2020.07.14"]
[Round "10"]
[White "ural58"]
[Black "tdf98pantani"]
[Result "1-0"]
[WhiteElo "2526"]
[BlackElo "2672"]
[TimeControl "180+1"]
[EndTime "11:57:49 PDT"]
[Termination "ural58 won by resignation"]

1. e4 {[%clk 0:03:00.9]} 1... e6 {[%clk 0:02:57.7]} 2. Qe2 {[%clk 0:03:00.1]}
2... c5 {[%clk 0:02:57.2]} 3. b3 {[%clk 0:02:59.6]} 3... Nc6 {[%clk 0:02:55.6]}
4. Bb2 {[%clk 0:02:59.5]} 4... d6 {[%clk 0:02:54.5]} 5. f4 {[%clk 0:02:57.7]}
5... e5 {[%clk 0:02:52.1]} 6. Nc3 {[%clk 0:02:55.9]} 6... Nf6 {[%clk 0:02:52]}
7. O-O-O {[%clk 0:02:55.6]} 7... Nd4 {[%clk 0:02:50.5]} 8. Qf2 {[%clk
0:02:55.7]} 8... Be7 {[%clk 0:02:47.2]} 9. Nf3 {[%clk 0:02:54.5]} 9... Bg4
{[%clk 0:02:44.5]} 10. h3 {[%clk 0:02:49.1]} 10... Bxf3 {[%clk 0:02:44.4]} 11.
gxf3 {[%clk 0:02:49.2]} 11... exf4 {[%clk 0:02:39.8]} 12. Nb5 {[%clk 0:02:47.1]}
12... Ne6 {[%clk 0:02:37.6]} 13. d4 {[%clk 0:02:41.2]} 13... a6 {[%clk
0:02:33.7]} 14. d5 {[%clk 0:02:41.2]} 14... axb5 {[%clk 0:02:20.6]} 15. Bxb5+
{[%clk 0:02:39.4]} 15... Kf8 {[%clk 0:02:21]} 16. dxe6 {[%clk 0:02:38.5]} 16...
Rxa2 {[%clk 0:02:11.8]} 17. e5 {[%clk 0:02:38.3]} 17... Rxb2 {[%clk 0:02:07.2]}
18. Kxb2 {[%clk 0:02:35.5]} 18... Nh5 {[%clk 0:02:04.8]} 19. exf7 {[%clk
0:02:26.8]} 19... d5 {[%clk 0:01:56.1]} 20. Be8 {[%clk 0:02:23.4]} 20... Ng3
{[%clk 0:01:55]} 21. Rhe1 {[%clk 0:02:22.4]} 21... c4 {[%clk 0:01:52.1]} 22. Qd2
{[%clk 0:02:09.6]} 22... Qa8 {[%clk 0:01:26.9]} 23. Ra1 {[%clk 0:02:04.1]} 23...
Qd8 {[%clk 0:01:24.7]} 24. Qxf4 {[%clk 0:01:59.4]} 24... Nh5 {[%clk 0:01:09.1]}
25. Qd4 {[%clk 0:01:39.3]} 25... c3+ {[%clk 0:00:52.3]} 26. Qxc3 {[%clk
0:01:37]} 26... Nf4 {[%clk 0:00:51.2]} 27. Red1 {[%clk 0:01:15.9]} 27... Ne6
{[%clk 0:00:45.4]} 28. Qa5 {[%clk 0:01:14.6]} 28... Nc7 {[%clk 0:00:41]} 29. f4
{[%clk 0:01:10]} 29... g6 {[%clk 0:00:40.7]} 30. Qb6 {[%clk 0:01:04.8]} 30...
Kg7 {[%clk 0:00:40]} 31. Ra7 {[%clk 0:00:59]} 31... Ne6 {[%clk 0:00:28.3]} 32.
Rxb7 {[%clk 0:00:53.3]} 32... Qc8 {[%clk 0:00:20.5]} 33. Rxe7 {[%clk 0:00:43.9]}
1-0

[Event "*** SCC Grand Prix: Titled Tuesday Blitz"]
[Site "Chess.com"]
[Date "2020.07.14"]
[Round "10"]
[White "marianokar"]
[Black "Flawless_Fighter"]
[Result "0-1"]
[WhiteElo "2430"]
[BlackElo "2562"]
[TimeControl "180+1"]
[EndTime "11:57:51 PDT"]
[Termination "Flawless_Fighter won by resignation"]

1. e4 {[%clk 0:03:00.9]} 1... c6 {[%clk 0:02:59.7]} 2. d4 {[%clk 0:02:59.9]}
2... d5 {[%clk 0:03:00.6]} 3. exd5 {[%clk 0:03:00.8]} 3... cxd5 {[%clk
0:03:01.5]} 4. Bd3 {[%clk 0:03:00.1]} 4... Nc6 {[%clk 0:03:01.9]} 5. c3 {[%clk
0:03:00.7]} 5... Nf6 {[%clk 0:02:58.4]} 6. h3 {[%clk 0:03:00.7]} 6... g6 {[%clk
0:02:53.8]} 7. Nf3 {[%clk 0:03:01.1]} 7... Bf5 {[%clk 0:02:53.9]} 8. Be2 {[%clk
0:03:00.3]} 8... e6 {[%clk 0:02:48]} 9. O-O {[%clk 0:02:59.8]} 9... h5 {[%clk
0:02:48.3]} 10. Re1 {[%clk 0:02:34.2]} 10... Bd6 {[%clk 0:02:40.3]} 11. Bg5
{[%clk 0:02:20.8]} 11... Be7 {[%clk 0:02:40.2]} 12. Nbd2 {[%clk 0:02:12.2]}
12... Ne4 {[%clk 0:02:35.9]} 13. Bxe7 {[%clk 0:02:07.3]} 13... Qxe7 {[%clk
0:02:36.8]} 14. Nxe4 {[%clk 0:02:05.8]} 14... Bxe4 {[%clk 0:02:36.4]} 15. Nd2
{[%clk 0:02:04.2]} 15... h4 {[%clk 0:02:31.1]} 16. Nxe4 {[%clk 0:01:56.6]} 16...
dxe4 {[%clk 0:02:32]} 17. Bc4 {[%clk 0:01:48.7]} 17... f5 {[%clk 0:02:30.8]} 18.
f3 {[%clk 0:01:47.7]} 18... O-O-O {[%clk 0:02:21]} 19. fxe4 {[%clk 0:01:47.7]}
19... Ne5 {[%clk 0:02:08]} 20. Bxe6+ {[%clk 0:01:38.2]} 20... Qxe6 {[%clk
0:02:02.5]} 21. exf5 {[%clk 0:01:38.5]} 21... gxf5 {[%clk 0:01:43.7]} 22. Rxe5
{[%clk 0:01:37.3]} 22... Qb6 {[%clk 0:01:43.6]} 23. Qc2 {[%clk 0:01:25]} 23...
f4 {[%clk 0:01:39.6]} 24. Qf5+ {[%clk 0:01:13.1]} 24... Kb8 {[%clk 0:01:38.8]}
25. Qxf4 {[%clk 0:01:13.3]} 25... Ka8 {[%clk 0:01:34]} 26. b3 {[%clk 0:00:56.7]}
26... Rhg8 {[%clk 0:01:29.8]} 27. Qxh4 {[%clk 0:00:41.3]} 27... Qc6 {[%clk
0:01:23.1]} 28. Rg5 {[%clk 0:00:25.4]} 28... Qxc3 {[%clk 0:01:20.1]} 29. Rf1
{[%clk 0:00:20.5]} 29... Rge8 {[%clk 0:01:05.7]} 30. Rg4 {[%clk 0:00:19]} 30...
a6 {[%clk 0:01:00.7]} 31. Qg3 {[%clk 0:00:18.1]} 31... Qd2 {[%clk 0:01:01.2]}
32. Rf2 {[%clk 0:00:17.3]} 32... Re1+ {[%clk 0:01:00]} 33. Kh2 {[%clk
0:00:14.8]} 33... Qc1 {[%clk 0:01:00.5]} 34. Qe5 {[%clk 0:00:13]} 34... Rxe5
{[%clk 0:01:00]} 35. Kg3 {[%clk 0:00:13.9]} 35... Re3+ {[%clk 0:00:58.5]} 0-1

[Event "*** SCC Grand Prix: Titled Tuesday Blitz"]
[Site "Chess.com"]
[Date "2020.07.14"]
[Round "10"]
[White "Zarinur"]
[Black "sergeikim"]
[Result "0-1"]
[WhiteElo "2117"]
[BlackElo "2368"]
[TimeControl "180+1"]
[EndTime "11:57:55 PDT"]
[Termination "sergeikim won by resignation"]

1. e4 {[%clk 0:03:00.9]} 1... e5 {[%clk 0:02:59]} 2. Nf3 {[%clk 0:03:00.1]} 2...
Nc6 {[%clk 0:02:58.9]} 3. Nc3 {[%clk 0:02:59.3]} 3... Nf6 {[%clk 0:02:56.7]} 4.
Bb5 {[%clk 0:02:58.5]} 4... Bb4 {[%clk 0:02:54.6]} 5. O-O {[%clk 0:02:57.1]}
5... O-O {[%clk 0:02:53.6]} 6. d3 {[%clk 0:02:57]} 6... d6 {[%clk 0:02:53.6]} 7.
Bg5 {[%clk 0:02:54.8]} 7... Bxc3 {[%clk 0:02:52.8]} 8. bxc3 {[%clk 0:02:54.1]}
8... Qe7 {[%clk 0:02:52.8]} 9. Re1 {[%clk 0:02:46.6]} 9... Nd8 {[%clk
0:02:51.9]} 10. d4 {[%clk 0:02:46.5]} 10... c6 {[%clk 0:02:51]} 11. Bd3 {[%clk
0:02:44.4]} 11... Ne6 {[%clk 0:02:49.6]} 12. Bd2 {[%clk 0:02:43.3]} 12... c5
{[%clk 0:02:46.2]} 13. dxe5 {[%clk 0:02:42.6]} 13... dxe5 {[%clk 0:02:45.9]} 14.
Nxe5 {[%clk 0:02:42]} 14... Rd8 {[%clk 0:02:44.1]} 15. Qf3 {[%clk 0:02:12.3]}
15... Qc7 {[%clk 0:02:36.8]} 16. Nc4 {[%clk 0:01:45.8]} 16... b5 {[%clk
0:02:31]} 17. Ne3 {[%clk 0:01:40.2]} 17... c4 {[%clk 0:02:23.7]} 18. Nd5 {[%clk
0:01:32.2]} 18... Qe5 {[%clk 0:02:13.5]} 19. Bf1 {[%clk 0:01:20]} 19... Nxd5
{[%clk 0:02:10.1]} 20. exd5 {[%clk 0:01:19.1]} 20... Qxd5 {[%clk 0:02:10.5]} 21.
Qxd5 {[%clk 0:01:14.9]} 21... Rxd5 {[%clk 0:02:09.6]} 22. Rad1 {[%clk
0:01:14.7]} 22... Bb7 {[%clk 0:02:05.1]} 23. g3 {[%clk 0:01:13.9]} 23... Rad8
{[%clk 0:02:00.5]} 24. Bg2 {[%clk 0:01:09]} 24... Rxd2 {[%clk 0:02:00.2]} 25.
Rxd2 {[%clk 0:01:08]} 25... Rxd2 {[%clk 0:02:01.1]} 26. Bxb7 {[%clk 0:01:07.9]}
26... Rxc2 {[%clk 0:01:59.9]} 27. f4 {[%clk 0:00:57.8]} 27... g6 {[%clk
0:01:58.3]} 28. Re3 {[%clk 0:00:37.3]} 28... Rxa2 {[%clk 0:01:54.7]} 29. Bc6
{[%clk 0:00:25.9]} 29... a6 {[%clk 0:01:49.8]} 30. Bd5 {[%clk 0:00:24]} 30...
Rc2 {[%clk 0:01:40.1]} 31. h3 {[%clk 0:00:17.2]} 31... Kf8 {[%clk 0:01:32.7]}
32. Bxe6 {[%clk 0:00:15.6]} 32... fxe6 {[%clk 0:01:32.1]} 33. Rxe6 {[%clk
0:00:16.5]} 33... Rxc3 {[%clk 0:01:31.8]} 34. Rxa6 {[%clk 0:00:17.3]} 34...
Rxg3+ {[%clk 0:01:30.2]} 35. Kf2 {[%clk 0:00:18.1]} 35... Rxh3 {[%clk
0:01:29.2]} 36. Rb6 {[%clk 0:00:18.1]} 36... Rb3 {[%clk 0:01:27.9]} 37. f5
{[%clk 0:00:13.5]} 37... gxf5 {[%clk 0:01:26.9]} 38. Rf6+ {[%clk 0:00:13]} 38...
Ke7 {[%clk 0:01:26.6]} 39. Rxf5 {[%clk 0:00:13.9]} 39... c3 {[%clk 0:01:23.7]}
40. Rc5 {[%clk 0:00:12.5]} 40... b4 {[%clk 0:01:22.3]} 41. Ke2 {[%clk
0:00:11.4]} 41... Rb2+ {[%clk 0:01:22.4]} 42. Kd3 {[%clk 0:00:11.1]} 42... Kf6
{[%clk 0:01:16.2]} 0-1

[Event "*** SCC Grand Prix: Titled Tuesday Blitz"]
[Site "Chess.com"]
[Date "2020.07.14"]
[Round "10"]
[White "MIlorenzana271"]
[Black "Ermito2020"]
[Result "0-1"]
[WhiteElo "2405"]
[BlackElo "2521"]
[TimeControl "180+1"]
[EndTime "11:57:58 PDT"]
[Termination "Ermito2020 won by resignation"]

1. e4 {[%clk 0:03:00.9]} 1... c6 {[%clk 0:02:59.1]} 2. d4 {[%clk 0:03:00.2]}
2... d5 {[%clk 0:03:00]} 3. e5 {[%clk 0:03:00.2]} 3... Bf5 {[%clk 0:02:59.5]} 4.
Nf3 {[%clk 0:02:59.1]} 4... e6 {[%clk 0:02:59.4]} 5. Be2 {[%clk 0:02:59.3]} 5...
Ne7 {[%clk 0:03:00]} 6. Nbd2 {[%clk 0:02:58.4]} 6... c5 {[%clk 0:02:55.8]} 7.
Nb3 {[%clk 0:02:56.3]} 7... Nd7 {[%clk 0:02:45.4]} 8. O-O {[%clk 0:02:54.8]}
8... Nc6 {[%clk 0:02:44.2]} 9. c3 {[%clk 0:02:54.8]} 9... Be7 {[%clk 0:02:36.7]}
10. Ne1 {[%clk 0:02:54]} 10... O-O {[%clk 0:02:21.8]} 11. a4 {[%clk 0:02:52.1]}
11... cxd4 {[%clk 0:02:17.1]} 12. cxd4 {[%clk 0:02:51.4]} 12... Rc8 {[%clk
0:02:16.2]} 13. Bd3 {[%clk 0:02:36]} 13... Bxd3 {[%clk 0:02:14]} 14. Nxd3 {[%clk
0:02:35.5]} 14... Nb6 {[%clk 0:01:52.7]} 15. Ndc5 {[%clk 0:02:22.6]} 15... Rc7
{[%clk 0:01:47.8]} 16. a5 {[%clk 0:02:16.5]} 16... Nc4 {[%clk 0:01:47.2]} 17. a6
{[%clk 0:02:15.9]} 17... b6 {[%clk 0:01:42.9]} 18. Nb7 {[%clk 0:02:15.7]} 18...
Qd7 {[%clk 0:01:41.4]} 19. Be3 {[%clk 0:02:06.4]} 19... Nb4 {[%clk 0:01:40.4]}
20. Qe2 {[%clk 0:01:28]} 20... Nxa6 {[%clk 0:01:11.1]} 21. Rxa6 {[%clk
0:01:26.9]} 21... Rxb7 {[%clk 0:01:11.2]} 22. Rfa1 {[%clk 0:01:26.1]} 22... Rc8
{[%clk 0:01:04.1]} 23. g3 {[%clk 0:01:22.2]} 23... h6 {[%clk 0:01:03.5]} 24.
R6a2 {[%clk 0:01:12.7]} 24... a5 {[%clk 0:01:01.9]} 25. Nc1 {[%clk 0:01:12.3]}
25... Rbc7 {[%clk 0:00:51.3]} 26. Nd3 {[%clk 0:01:11]} 26... Nxe3 {[%clk
0:00:40.2]} 27. Qxe3 {[%clk 0:01:10.6]} 27... Qb5 {[%clk 0:00:38.6]} 28. h4
{[%clk 0:01:02.8]} 28... Rc2 {[%clk 0:00:37.9]} 29. Nf4 {[%clk 0:00:57.1]} 29...
Qc4 {[%clk 0:00:31.4]} 30. Nh5 {[%clk 0:00:54.9]} 30... Rc1+ {[%clk 0:00:30.4]}
31. Kh2 {[%clk 0:00:52.3]} 31... Qf1 {[%clk 0:00:29.9]} 32. Rxc1 {[%clk
0:00:42.9]} 32... Rxc1 {[%clk 0:00:30.8]} 33. Qf3 {[%clk 0:00:40.2]} 33... Rc2
{[%clk 0:00:30.4]} 0-1

[Event "*** SCC Grand Prix: Titled Tuesday Blitz"]
[Site "Chess.com"]
[Date "2020.07.14"]
[Round "10"]
[White "awesomevishesh"]
[Black "PIwan"]
[Result "1-0"]
[WhiteElo "2345"]
[BlackElo "2485"]
[TimeControl "180+1"]
[EndTime "11:57:59 PDT"]
[Termination "awesomevishesh won by resignation"]

1. e4 {[%clk 0:03:00.9]} 1... c6 {[%clk 0:03:00.4]} 2. Nf3 {[%clk 0:02:59]} 2...
d5 {[%clk 0:03:01.3]} 3. Nc3 {[%clk 0:02:58.5]} 3... Bg4 {[%clk 0:02:59.6]} 4.
h3 {[%clk 0:02:50.4]} 4... Bxf3 {[%clk 0:02:58.6]} 5. Qxf3 {[%clk 0:02:50.9]}
5... e6 {[%clk 0:02:59.5]} 6. g3 {[%clk 0:02:35.3]} 6... Nf6 {[%clk 0:02:49.2]}
7. Bg2 {[%clk 0:02:34.6]} 7... Bb4 {[%clk 0:02:48.1]} 8. e5 {[%clk 0:02:27.9]}
8... Nfd7 {[%clk 0:02:41.8]} 9. Qg4 {[%clk 0:02:23.5]} 9... Bxc3 {[%clk
0:02:19.4]} 10. dxc3 {[%clk 0:02:22.6]} 10... Kf8 {[%clk 0:01:40.9]} 11. Bf4
{[%clk 0:02:15.9]} 11... c5 {[%clk 0:01:40.2]} 12. O-O {[%clk 0:02:10.2]} 12...
Nc6 {[%clk 0:01:40.7]} 13. Rfe1 {[%clk 0:02:10]} 13... h5 {[%clk 0:01:40.8]} 14.
Qe2 {[%clk 0:02:05.4]} 14... g5 {[%clk 0:01:24]} 15. Be3 {[%clk 0:02:04.6]}
15... Ncxe5 {[%clk 0:01:23.1]} 16. Bxc5+ {[%clk 0:02:02.8]} 16... Nxc5 {[%clk
0:01:24]} 17. Qxe5 {[%clk 0:02:01.9]} 17... Rh6 {[%clk 0:01:10.1]} 18. c4 {[%clk
0:01:53.9]} 18... f6 {[%clk 0:00:35.6]} 19. Qd4 {[%clk 0:01:53.1]} 19... Qd6
{[%clk 0:00:35.3]} 20. cxd5 {[%clk 0:01:50.3]} 20... e5 {[%clk 0:00:35.7]} 21.
Qd2 {[%clk 0:01:43.8]} 21... b6 {[%clk 0:00:31.2]} 22. b4 {[%clk 0:01:41.4]}
22... Nb7 {[%clk 0:00:30.2]} 23. c4 {[%clk 0:01:41.4]} 23... Rc8 {[%clk
0:00:30.2]} 24. Rac1 {[%clk 0:01:39.5]} 24... a5 {[%clk 0:00:29]} 25. a3 {[%clk
0:01:38.8]} 25... Rh7 {[%clk 0:00:25.9]} 26. Be4 {[%clk 0:01:35.5]} 26... Rhc7
{[%clk 0:00:22.8]} 27. Bf5 {[%clk 0:01:35.5]} 27... Rd8 {[%clk 0:00:22.7]} 28.
Red1 {[%clk 0:01:16.6]} 28... Qe7 {[%clk 0:00:20.2]} 29. Qe2 {[%clk 0:01:07]}
29... Nd6 {[%clk 0:00:19.2]} 30. Be6 {[%clk 0:01:04]} 30... Nb7 {[%clk
0:00:17.6]} 31. Qxh5 {[%clk 0:01:00.9]} 31... Qh7 {[%clk 0:00:17.5]} 32. Qxh7
{[%clk 0:00:57]} 32... Rxh7 {[%clk 0:00:18.4]} 33. c5 {[%clk 0:00:57.1]} 33...
Re7 {[%clk 0:00:13.5]} 34. c6 {[%clk 0:00:53.8]} 34... Nd6 {[%clk 0:00:10.1]}
35. c7 {[%clk 0:00:53.8]} 35... Rc8 {[%clk 0:00:09.5]} 36. Bxc8 {[%clk
0:00:52.6]} 36... Nxc8 {[%clk 0:00:10.4]} 1-0